fUST/lending_fUST_20250407
["ID","MTS","AMOUNT","RATE_DAILY","PERIOD"]
[357294320,1743989452387,-500.0,0.00041369,7]
[357294321,1743989452399,-508.09,0.00041369,7]
[357294322,1743989452409,-500.0,0.00041369,7]
[357294323,1743989452420,-500.0,0.00041369,7]
[357294324,1743989452429,-503.89819841,0.00041369,7]
[357294325,1743989452439,-500.0,0.00041369,7]
[357294326,1743989452449,-500.0,0.00041369,7]
[357294327,1743989452459,-500.0,0.00041369,7]
[357294328,1743989452469,-500.0,0.00041369,7]
[357294329,1743989452479,-500.0,0.00041369,7]
[357294330,1743989452490,-500.0,0.00041373,10]
[357294331,1743989452499,-500.0,0.00041373,10]
[357294332,1743989452509,-500.0,0.00041373,10]
[357294333,1743989452519,-500.0,0.00041373,10]
[357294334,1743989452529,-500.0,0.00041373,10]
[357294335,1743989452539,-500.0,0.00041373,10]
[357294336,1743989452548,-500.0,0.00041373,10]
[357294337,1743989452558,-500.0,0.00041373,10]
[357294338,1743989452568,-500.0,0.00041373,10]
[357294339,1743989452578,-153.0,0.00041634,30]
[357294340,1743989452588,-153.0,0.00041634,30]
[357294341,1743989452599,-153.0,0.00041634,30]
[357294342,1743989452609,-153.0,0.00041634,30]
[357294343,1743989452619,-500.0,0.00041643,7]
[357294344,1743989452699,-500.0,0.00041643,7]
[357294345,1743989452709,-500.0,0.00041643,7]
[357294346,1743989452719,-500.0,0.00041643,7]
[357294347,1743989452729,-226.03750932,0.00041643,7]
[357294348,1743989452738,-500.0,0.00041643,7]
[357294349,1743989452747,-500.0,0.00041643,7]
[357294350,1743989452757,-500.0,0.00041643,7]
[357294351,1743989452767,-500.0,0.00041643,7]
[357294352,1743989452776,-500.0,0.00041643,7]
[357294353,1743989452786,-500.0,0.00041643,7]
[357294354,1743989452795,-328.87893901,0.00041643,7]
[357294355,1743989452805,-617.12974274,0.00041643,7]
[357294356,1743989452814,-500.0,0.00041643,7]
[357294357,1743989452824,-500.0,0.00041643,7]
[357294358,1743989452834,-512.3503684,0.00041643,7]
[357294359,1743989452843,-500.0,0.00041643,7]
[357294360,1743989452853,-500.0,0.00041643,7]
[357294361,1743989452863,-500.0,0.00041643,7]
[357294362,1743989452873,-500.0,0.00041643,7]
[357294363,1743989452882,-500.0,0.00041643,7]
[357294364,1743989452891,-500.0,0.00041643,7]
[357294365,1743989452908,-500.0,0.00041643,7]
[357294366,1743989452917,-500.0,0.00041643,7]
[357294367,1743989452927,-500.0,0.00041643,7]
[357294368,1743989452938,-520.53134924,0.00041643,7]
[357294369,1743989452950,-523.25667802,0.00041643,7]
[357294370,1743989452960,-177.856586,0.00041643,120]
[357294371,1743989452970,-500.0,0.00041643,7]
[357294372,1743989452980,-502.09661154,0.00041643,7]
[357294373,1743989452990,-500.0,0.00041643,7]
[357294374,1743989453002,-500.0,0.00041643,7]
[357294375,1743989453011,-500.0,0.00041643,2]
[357294376,1743989453021,-602.55,0.00041643,7]
[357294377,1743989453031,-500.0,0.00041643,7]
[357294378,1743989453041,-1145.87,0.00041643,7]
[357294379,1743989453050,-500.0,0.00041643,7]
[357294380,1743989453060,-500.0,0.00041643,7]
[357294381,1743989453069,-500.0,0.00041643,7]
[357294382,1743989453079,-500.0,0.00041643,7]
[357294383,1743989453090,-500.0,0.00041643,7]
[357294384,1743989453100,-500.0,0.00041643,7]
[357294385,1743989453109,-500.0,0.00041643,7]
[357294386,1743989453119,-500.0,0.00041643,7]
[357294387,1743989453129,-1000.0,0.00041643,7]
[357294388,1743989453139,-500.0,0.00041643,7]
[357294389,1743989453151,-300.0,0.00041643,30]
[357294390,1743989453161,-500.0,0.00041643,7]
[357294391,1743989453170,-500.0,0.00041643,7]
[357294392,1743989453180,-500.0,0.00041643,7]
[357294393,1743989453189,-827.67,0.00041643,7]
[357294394,1743989453199,-500.0,0.00041643,7]
[357294395,1743989453208,-500.0,0.00041643,7]
[357294396,1743989453218,-500.0,0.00041643,7]
[357294397,1743989453228,-500.0,0.00041643,7]
[357294398,1743989453237,-500.0,0.00041643,7]
[357294399,1743989453246,-500.0,0.00041643,7]
[357294400,1743989453256,-500.0,0.00041643,7]
[357294401,1743989453265,-500.0,0.00041643,7]
[357294402,1743989453276,-600.43,0.00041643,7]
[357294403,1743989453287,-500.0,0.00041643,7]
[357294404,1743989453298,-500.0,0.00041643,7]
[357294405,1743989453308,-573.25,0.00041643,7]
[357294406,1743989453318,-500.0,0.00041643,7]
[357294407,1743989453328,-500.0,0.00041643,7]
[357294408,1743989453337,-500.0,0.00041643,7]
[357294409,1743989453346,-500.0,0.00041643,7]
[357294410,1743989453356,-530.25029764,0.00041643,7]
[357294411,1743989453365,-500.0,0.00041643,7]
[357294412,1743989453375,-500.0,0.00041643,7]
[357294413,1743989453384,-500.0,0.00041643,7]
[357294414,1743989453394,-500.0,0.00041643,7]
[357294415,1743989453403,-187.35496035,0.00041643,7]
[357294416,1743989453413,-500.0,0.00041643,7]
[357294417,1743989453422,-578.19,0.00041643,7]
[357294418,1743989453432,-500.0,0.00041643,7]
[357294419,1743989453442,-500.0,0.00041643,7]
[357294420,1743989453451,-500.0,0.00041643,7]
[357294421,1743989453460,-500.0,0.00041643,7]
[357294422,1743989453470,-1000.0,0.00041643,7]
[357294423,1743989453479,-200.0,0.00041643,7]
[357294424,1743989453489,-538.75940092,0.00041643,7]
[357294425,1743989453498,-500.0,0.00041643,7]
[357294426,1743989453507,-500.0,0.00041643,7]
[357294427,1743989453517,-500.0,0.00041643,7]
[357294428,1743989453526,-500.0,0.00041643,7]
[357294429,1743989453536,-500.0,0.00041643,7]
[357294430,1743989453545,-500.0,0.00041643,7]
[357294431,1743989453555,-500.0,0.00041643,7]
[357294432,1743989453565,-500.0,0.00041643,7]
[357294433,1743989453574,-500.0,0.00041643,7]
[357294434,1743989453584,-293.74201732,0.00041643,7]
[357294435,1743989453594,-500.0,0.00041643,7]
[357294436,1743989453604,-570.15,0.00041643,7]
[357294437,1743989453614,-500.0,0.00041643,7]
[357294438,1743989453624,-500.0,0.00041643,7]
[357294439,1743989453633,-500.0,0.00041643,7]
[357294440,1743989453643,-500.0,0.00041643,7]
[357294441,1743989453653,-251.98662633,0.00041643,7]
[357294442,1743989453663,-513.64479316,0.00041643,7]
[357294443,1743989453673,-500.0,0.00041643,7]
[357294444,1743989453682,-568.78397614,0.00041643,7]
[357294445,1743989453692,-500.0,0.00041643,7]
[357294446,1743989453702,-500.0,0.00041643,7]
[357294447,1743989453712,-500.0,0.00041643,7]
[357294448,1743989453722,-500.0,0.00041643,7]
[357294449,1743989453731,-500.0,0.00041643,7]
[357294450,1743989453741,-670.12,0.00041643,7]
[357294451,1743989453751,-500.0,0.00041643,7]
[357294452,1743989453760,-500.0,0.00041643,7]
[357294453,1743989453770,-500.0,0.00041643,7]
[357294454,1743989453781,-181.8549009,0.00041643,7]
[357294455,1743989453791,-948.38,0.00041643,7]
[357294456,1743989453801,-500.0,0.00041643,7]
[357294457,1743989453810,-649.67,0.00041643,7]
[357294458,1743989453819,-501.29130657,0.00041643,7]
[357294459,1743989453829,-500.0,0.00041643,7]
[357294460,1743989453840,-500.0,0.00041643,7]
[357294461,1743989453850,-500.0,0.00041643,7]
[357294462,1743989453859,-500.0,0.00041643,7]
[357294463,1743989453869,-500.0,0.00041643,7]
[357294464,1743989453879,-500.0,0.00041643,3]
[357294465,1743989453889,-500.0,0.00041643,7]
[357294466,1743989453901,-500.0,0.00041643,7]
[357294467,1743989453911,-694.1,0.00041643,7]
[357294468,1743989453924,-528.88429035,0.00041643,7]
[357294469,1743989453934,-500.0,0.00041643,7]
[357294470,1743989453943,-500.0,0.00041643,7]
[357294471,1743989453953,-500.0,0.00041643,7]
[357294472,1743989453963,-500.0,0.00041643,7]
[357294473,1743989453973,-500.0,0.00041643,7]
[357294474,1743989453982,-629.95,0.00041643,7]
[357294475,1743989453993,-614.4,0.00041643,7]
[357294476,1743989454002,-171.45606507,0.00041643,7]
[357294477,1743989454011,-500.0,0.00041643,7]
[357294478,1743989454021,-500.0,0.00041643,7]
[357294479,1743989454030,-227.74907685,0.00041643,7]
[357294480,1743989454040,-500.0,0.00041643,7]
[357294481,1743989454049,-500.0,0.00041643,7]
[357294482,1743989454059,-500.0,0.00041643,7]
[357294483,1743989454069,-500.0,0.00041643,7]
[357294484,1743989454078,-500.0,0.00041643,7]
[357294485,1743989454088,-500.0,0.00041643,7]
[357294486,1743989454098,-500.0,0.00041643,7]
[357294487,1743989454108,-500.0,0.00041643,7]
[357294488,1743989454117,-500.0,0.00041643,7]
[357294489,1743989454127,-12.14481347,0.00041643,7]
[357294490,1743989454470,-487.85518653,0.00041643,7]
[357294491,1743989454481,-98.39481347,0.00041643,7]
[357294492,1743989455712,-562.75581416,0.00034989,7]
[357294493,1743989455723,-500.0,0.00034989,7]
[357294494,1743989455734,-500.0,0.00034989,2]
[357294495,1743989455744,-504.1948858,0.00034989,7]
[357294496,1743989455755,-500.0,0.00034989,2]
[357294497,1743989455765,-315.49783639,0.00034989,7]
[357294498,1743989455775,-500.0,0.00034989,2]
[357294499,1743989455784,-22.22374288,0.00034989,2]
[357294500,1743989455797,-477.77625712,0.00034989,2]
[357294501,1743989455806,-500.0,0.00034989,2]
[357294502,1743989455816,-500.0,0.00034989,2]
[357294503,1743989455826,-500.0,0.00034989,2]
[357294504,1743989455836,-500.0,0.00034989,2]
[357294505,1743989455846,-500.0,0.00034989,2]
[357294506,1743989455856,-500.0,0.00034989,2]
[357294507,1743989455866,-500.0,0.00034989,2]
[357294508,1743989455876,-500.0,0.00034989,2]
[357294509,1743989455886,-500.0,0.00034989,2]
[357294510,1743989455897,-500.0,0.00034989,2]
[357294511,1743989455907,-500.0,0.00034989,2]
[357294512,1743989455919,-500.0,0.00034989,2]
[357294513,1743989455929,-500.0,0.00034989,2]
[357294514,1743989455939,-500.0,0.00034989,2]
[357294515,1743989455948,-500.0,0.00034989,2]
[357294516,1743989455959,-500.0,0.00034989,2]
[357294517,1743989455969,-500.0,0.00034989,2]
[357294518,1743989455980,-500.0,0.00034989,2]
[357294519,1743989455990,-500.0,0.00034989,2]
[357294520,1743989456000,-500.0,0.00034989,2]
[357294521,1743989456010,-500.0,0.00034989,2]
[357294522,1743989456020,-500.0,0.00034989,2]
[357294523,1743989456030,-500.0,0.00034989,2]
[357294524,1743989456040,-500.0,0.00034989,2]
[357294525,1743989456050,-591.13037047,0.00034989,2]
[357294526,1743989456060,-500.0,0.00034989,2]
[357294527,1743989456070,-500.0,0.00034989,2]
[357294528,1743989456080,-500.0,0.00034989,2]
[357294529,1743989456090,-500.0,0.00034989,2]
[357294530,1743989456100,-500.0,0.00034989,2]
[357294531,1743989456111,-500.0,0.00034989,2]
[357294532,1743989456120,-500.0,0.00034989,2]
[357294533,1743989456131,-419.28457398,0.00040772,2]
[357294534,1743989456140,-295.06492908,0.00040994,2]
[357294535,1743989456151,-151.0,0.00040994,2]
[357294536,1743989456162,-591.00043021,0.00041095,7]
[357294537,1743989456172,-500.0,0.00041095,7]
[357294538,1743989456183,-500.0,0.00041095,2]
[357294539,1743989456193,-500.0,0.00041095,7]
[357294540,1743989456203,-500.0,0.00041095,7]
[357294541,1743989456214,-500.0,0.00041369,7]
[357294542,1743989456430,-500.63977623,0.00041369,2]
[357294543,1743989456440,-500.0,0.00041369,7]
[357294544,1743989456450,-500.0,0.00041369,7]
[357294545,1743989456459,-401.60518653,0.00041643,7]
[357294546,1743989456469,-500.0,0.00041643,7]
[357294547,1743989456479,-500.0,0.00041643,7]
[357294548,1743989456488,-500.0,0.00041643,7]
[357294549,1743989456497,-615.92934585,0.00041643,7]
[357294550,1743989456506,-500.0,0.00041643,7]
[357294551,1743989456516,-500.0,0.00041643,7]
[357294552,1743989456525,-500.0,0.00041643,7]
[357294553,1743989456535,-500.0,0.00041643,7]
[357294554,1743989456544,-559.22708684,0.00041643,7]
[357294555,1743989456553,-606.9,0.00041643,7]
[357294556,1743989456563,-500.0,0.00041643,7]
[357294557,1743989456572,-500.0,0.00041643,7]
[357294558,1743989456582,-1067.29,0.00041643,7]
[357294559,1743989456592,-500.0,0.00041643,7]
[357294560,1743989456602,-766.12,0.00041643,7]
[357294561,1743989456612,-500.0,0.00041643,7]
[357294562,1743989456621,-500.0,0.00041643,7]
[357294563,1743989456631,-458.3834581,0.00041643,7]
[357294564,1743989456641,-500.0,0.00041643,7]
[357294565,1743989456655,-500.0,0.00041643,7]
[357294566,1743989456667,-500.0,0.00041643,7]
[357294567,1743989456677,-961.28,0.00041643,7]
[357294568,1743989456686,-500.0,0.00041643,7]
[357294569,1743989456696,-500.0,0.00041643,7]
[357294570,1743989456706,-500.0,0.00041643,7]
[357294571,1743989456716,-500.0,0.00041643,7]
[357294572,1743989456727,-699.14,0.00041643,7]
[357294573,1743989456737,-500.0,0.00041643,7]
[357294574,1743989456746,-500.0,0.00041643,7]
[357294575,1743989456756,-500.0,0.00041643,7]
[357294576,1743989456766,-399.79880219,0.00041643,7]
[357294577,1743989456775,-652.42,0.00041643,7]
[357294578,1743989456785,-914.3,0.00041643,7]
[357294579,1743989456795,-500.0,0.00041643,7]
[357294580,1743989456804,-736.58,0.00041643,7]
[357294581,1743989456814,-500.0,0.00041643,7]
[357294582,1743989456823,-500.0,0.00041643,7]
[357294583,1743989456833,-500.0,0.00041643,7]
[357294584,1743989456843,-295.42780134,0.00041643,7]
[357294585,1743989456852,-217.41437307,0.00041643,7]
[357294586,1743989456863,-1450.92,0.00041643,7]
[357294587,1743989456872,-508.25981188,0.00041643,7]
[357294588,1743989456882,-500.0,0.00041643,7]
[357294589,1743989456892,-500.0,0.00041643,7]
[357294590,1743989456908,-500.0,0.00041643,7]
[357294591,1743989456919,-500.0,0.00041643,7]
[357294592,1743989456929,-500.0,0.00041643,7]
[357294593,1743989456939,-500.0,0.00041643,7]
[357294594,1743989456949,-500.0,0.00041643,7]
[357294595,1743989456959,-500.0,0.00041643,7]
[357294596,1743989456968,-500.0,0.00041643,7]
[357294597,1743989456978,-500.0,0.00041643,7]
[357294598,1743989456988,-596.60848921,0.00041643,7]
[357294599,1743989456998,-500.0,0.00041643,7]
[357294600,1743989457008,-500.0,0.00041643,7]
[357294601,1743989457017,-500.0,0.00041643,7]
[357294602,1743989457027,-500.0,0.00041643,7]
[357294603,1743989457037,-500.71530683,0.00041643,7]
[357294604,1743989457046,-946.57758054,0.00041643,7]
[357294605,1743989457065,-445.90241946,0.00041643,7]
[357294606,1743989457074,-500.0,0.00041643,7]
[357294607,1743989457084,-500.0,0.00041643,7]
[357294608,1743989457094,-500.0,0.00041643,7]
[357294609,1743989457104,-500.0,0.00041643,7]
[357294610,1743989457114,-500.0,0.00041643,7]
[357294611,1743989457123,-500.0,0.00041643,7]
[357294612,1743989457133,-302.63853378,0.00041643,7]
[357294613,1743989457295,-197.36146622,0.00041643,7]
[357294614,1743989457305,-461.23029521,0.00041643,7]
[357294615,1743989457316,-640.11,0.00041643,7]
[357294616,1743989457326,-53.94378753,0.00041643,7]
[357294617,1743989457339,-446.05621247,0.00041643,7]
[357294618,1743989457348,-483.00378753,0.00041643,7]
[357294619,1743989457361,-16.99621247,0.00041643,7]
[357294620,1743989457371,-504.79389964,0.00041643,7]
[357294621,1743989457381,-500.0,0.00041643,7]
[357294622,1743989457391,-1310.4,0.00041643,7]
[357294623,1743989457405,-500.0,0.00041643,7]
[357294624,1743989457415,-500.0,0.00041643,7]
[357294625,1743989457425,-1636.83,0.00041643,7]
[357294626,1743989457435,-572.15564727,0.00041643,7]
[357294627,1743989457444,-500.0,0.00041643,7]
[357294628,1743989457454,-500.0,0.00041643,7]
[357294629,1743989457465,-500.0,0.00041643,7]
[357294630,1743989457475,-500.0,0.00041643,7]
[357294631,1743989457485,-500.0,0.00041643,7]
[357294632,1743989457496,-500.0,0.00041643,7]
[357294633,1743989457507,-500.0,0.00041643,7]
[357294634,1743989457517,-500.0,0.00041643,7]
[357294635,1743989457527,-500.0,0.00041643,7]
[357294636,1743989457537,-500.0,0.00041643,7]
[357294637,1743989457547,-500.0,0.00041643,7]
[357294638,1743989457557,-500.0,0.00041643,7]
[357294639,1743989457567,-500.0,0.00041643,7]
[357294640,1743989457577,-500.0,0.00041643,7]
[357294641,1743989457587,-555.51,0.00041643,7]
[357294642,1743989457597,-500.0,0.00041643,7]
[357294643,1743989457608,-1108.77,0.00041643,7]
[357294644,1743989457618,-500.0,0.00041643,7]
[357294645,1743989457628,-500.0,0.00041643,7]
[357294646,1743989457638,-500.0,0.00041643,7]
[357294647,1743989457655,-500.0,0.00041643,7]
[357294648,1743989457665,-500.0,0.00041643,7]
[357294649,1743989457675,-184.82528292,0.00041643,7]
[357294650,1743989457686,-500.0,0.00041643,7]
[357294651,1743989457697,-500.0,0.00041643,7]
[357294652,1743989457708,-500.0,0.00041643,7]
[357294653,1743989457718,-500.0,0.00041643,7]
[357294654,1743989457728,-504.5541689,0.00041643,5]
[357294655,1743989457738,-500.0,0.00041643,7]
[357294656,1743989457748,-500.0,0.00041643,7]
[357294657,1743989457758,-500.0,0.00041643,7]
[357294658,1743989457767,-500.0,0.00041643,7]
[357294659,1743989457777,-500.0,0.00041643,7]
[357294660,1743989457787,-690.09,0.00041643,7]
[357294661,1743989457796,-500.0,0.00041643,7]
[357294662,1743989457805,-500.0,0.00041643,7]
[357294663,1743989457815,-500.0,0.00041643,7]
[357294664,1743989457824,-1991.08,0.00041643,7]
[357294665,1743989457833,-500.0,0.00041643,7]
[357294666,1743989457843,-500.0,0.00041643,7]
[357294667,1743989457858,-500.0,0.00041643,7]
[357294668,1743989457868,-500.0,0.00041643,7]
[357294669,1743989457878,-500.0,0.00041643,7]
[357294670,1743989457888,-500.0,0.00041643,7]
[357294671,1743989457906,-500.0,0.00041643,7]
[357294672,1743989457917,-500.0,0.00041643,7]
[357294673,1743989457929,-500.0,0.00041643,7]
[357294674,1743989457941,-902.07,0.00041643,7]
[357294675,1743989457953,-709.79,0.00041643,7]
[357294676,1743989457964,-500.0,0.00041643,7]
[357294677,1743989457974,-500.0,0.00041643,7]
[357294678,1743989457985,-1037.93,0.00041643,7]
[357294679,1743989457995,-1247.23,0.00041643,7]
[357294680,1743989458006,-510.04115434,0.00041643,7]
[357294681,1743989458019,-500.0,0.00041643,7]
[357294682,1743989458030,-500.0,0.00041643,7]
[357294683,1743989458042,-500.0,0.00041643,7]
[357294684,1743989458053,-500.0,0.00041643,7]
[357294685,1743989458065,-500.0,0.00041643,7]
[357294686,1743989458076,-361.42391034,0.00041643,7]
[357294687,1743989458087,-500.0,0.00041643,7]
[357294688,1743989458097,-1401.44,0.00041643,7]
[357294689,1743989458107,-530.13,0.00041643,7]
[357294690,1743989458117,-500.0,0.00041643,7]
[357294691,1743989458127,-500.0,0.00041643,7]
[357294692,1743989458138,-500.0,0.00041643,7]
[357294693,1743989458156,-500.0,0.00041643,7]
[357294694,1743989458166,-500.0,0.00041643,7]
[357294695,1743989458176,-500.0,0.00041643,7]
[357294696,1743989458186,-595.95,0.00041643,7]
[357294697,1743989458197,-500.0,0.00041643,7]
[357294698,1743989458206,-500.0,0.00041643,7]
[357294699,1743989458216,-500.0,0.00041643,7]
[357294700,1743989458226,-500.0,0.00041643,7]
[357294701,1743989458235,-500.0,0.00041643,120]
[357294702,1743989458245,-500.0,0.00041643,7]
[357294703,1743989458255,-555.0787665,0.00041643,7]
[357294704,1743989458265,-623.91,0.00041643,7]
[357294705,1743989458274,-500.0,0.00041643,7]
[357294706,1743989458284,-318.4636272,0.00041643,7]
[357294707,1743989458293,-500.0,0.00041643,7]
[357294708,1743989458302,-761.98,0.00041643,7]
[357294709,1743989458311,-500.0,0.00041643,7]
[357294710,1743989458321,-500.0,0.00041643,7]
[357294711,1743989458330,-600.37,0.00041643,7]
[357294712,1743989458340,-500.0,0.00041643,7]
[357294713,1743989458350,-500.0,0.00041643,7]
[357294714,1743989458359,-527.56794992,0.00041643,7]
[357294715,1743989458368,-546.97,0.00041643,7]
[357294716,1743989458378,-500.0,0.00041643,7]
[357294717,1743989458387,-500.0,0.00041643,7]
[357294718,1743989458401,-742.32,0.00041643,7]
[357294719,1743989458411,-500.0,0.00041643,7]
[357294720,1743989458421,-500.0,0.00041643,7]
[357294721,1743989458430,-1013.59,0.00041643,7]
[357294722,1743989458439,-500.0,0.00041643,7]
[357294723,1743989458449,-500.0,0.00041643,7]
[357294724,1743989458458,-500.93600384,0.00041643,7]
[357294725,1743989458468,-500.0,0.00041643,7]
[357294726,1743989458478,-500.0,0.00041643,7]
[357294727,1743989458488,-500.0,0.00041643,7]
[357294728,1743989458498,-500.0,0.00041643,7]
[357294729,1743989458508,-502.83712332,0.00041643,7]
[357294730,1743989458518,-610.66,0.00041643,7]
[357294731,1743989458527,-500.0,0.00041643,7]
[357294732,1743989458537,-500.0,0.00041643,7]
[357294733,1743989458547,-500.0,0.00041643,7]
[357294734,1743989458557,-500.0,0.00041643,7]
[357294735,1743989458567,-472.41631167,0.00041643,7]
[357294736,1743989458577,-500.0,0.00041643,7]
[357294737,1743989458588,-500.0,0.00041643,7]
[357294738,1743989458598,-500.0,0.00041643,7]
[357294739,1743989458607,-285.83667755,0.00041643,7]
[357294740,1743989458616,-500.0,0.00041643,7]
[357294741,1743989458626,-500.0,0.00041643,7]
[357294742,1743989458637,-500.0,0.00041643,7]
[357294743,1743989458648,-500.0,0.00041643,7]
[357294744,1743989458658,-574.8363772,0.00041643,7]
[357294745,1743989458668,-500.0,0.00041643,7]
[357294746,1743989458679,-500.0,0.00041643,7]
[357294747,1743989458688,-2894.65,0.00041643,7]
[357294748,1743989458698,-500.0,0.00041643,7]
[357294749,1743989458708,-500.0,0.00041643,7]
[357294750,1743989458718,-500.0,0.00041643,7]
[357294751,1743989458727,-500.0,0.00041643,7]
[357294752,1743989458738,-501.72,0.00041643,7]
[357294753,1743989458748,-500.0,0.00041643,7]
[357294754,1743989458758,-500.0,0.00041643,7]
[357294755,1743989458768,-500.0,0.00041643,7]
[357294756,1743989458778,-2331.97,0.00041643,7]
[357294757,1743989458788,-500.0,0.00041643,7]
[357294758,1743989458798,-823.0,0.00041643,7]
[357294759,1743989458807,-557.46,0.00041643,7]
[357294760,1743989458817,-500.0,0.00041643,7]
[357294761,1743989458828,-578.04943119,0.00041643,7]
[357294762,1743989458837,-569.25163718,0.00041643,7]
[357294763,1743989458848,-500.0,0.00041643,7]
[357294764,1743989458859,-500.0,0.00041643,7]
[357294765,1743989458868,-1406.47653731,0.00041643,7]
[357294766,1743989459154,-10639.65297503,0.00040684,2]
[357294767,1743989459699,-12042.25238267,0.00040684,2]
[357294768,1743989459711,-1337.380915,0.00040684,2]
[357294772,1743989862307,-500.0,0.00023451,2]
[357294778,1743990431124,-500.0,0.00024862,2]
[357294779,1743990431147,-300.0,0.00025199,2]
[357294780,1743990431168,-3402.66067256,0.000252,2]
[357294781,1743990441078,-245.4874229,0.000252,2]
[357294782,1743990451108,-157.57515677,0.0002431,2]
[357294783,1743990461417,-500.0,0.0002417,2]
[357294795,1743990632315,-342.42484323,0.0002431,2]
[357294796,1743990632325,-6351.85190454,0.000252,2]
[357294797,1743990632335,-426.51063185,0.00025389,2]
[357294798,1743990632347,-73.48936815,0.00025389,2]
[357294799,1743990632357,-274.57886249,0.00025652,2]
[357294800,1743990632369,-225.42113751,0.00025652,2]
[357294801,1743990632380,-790.94675432,0.000259,6]
[357294802,1743990632394,-178.0813013,0.00026179,2]
[357294803,1743990632404,-500.0,0.00026423,2]
[357294804,1743990632414,-500.0,0.0002657,2]
[357294805,1743990632424,-300.0,0.00026574,2]
[357294806,1743990632434,-169.73,0.00026598,2]
[357294807,1743990632444,-790.94675424,0.00026624,6]
[357294808,1743990632454,-193.9052984,0.00026993,2]
[357294809,1743990632463,-500.0,0.00027165,2]
[357294810,1743990632473,-790.94675424,0.00027348,7]
[357294811,1743990632483,-175.9395016,0.00027397,120]
[357294812,1743990632493,-500.0,0.00027397,5]
[357294813,1743990632503,-500.0,0.00027423,2]
[357294814,1743990632513,-500.0,0.00027927,2]
[357294815,1743990632522,-790.94675424,0.00028072,7]
[357294816,1743990632532,-500.0,0.00028281,2]
[357294817,1743990632542,-500.0,0.00028515,2]
[357294818,1743990632551,-420.0,0.00028742,2]
[357294819,1743990632561,-790.94675424,0.00028797,8]
[357294820,1743990632570,-155.41448457,0.00029,7]
[357294821,1743990632579,-155.41448457,0.00029,7]
[357294822,1743990632588,-1226.81693403,0.00029,7]
[357294823,1743990632597,-1017.97348766,0.00029,7]
[357294824,1743990632606,-500.0,0.00029206,2]
[357294825,1743990632616,-790.94675424,0.00029521,8]
[357294826,1743990632626,-252.0,0.0003,2]
[357294827,1743990632648,-24900.0,0.00030045,2]
[357294828,1743990632658,-2159.84394778,0.00030145,2]
[357294829,1743990632669,-790.94675424,0.00030245,9]
[357294830,1743990632679,-500.0,0.00030332,7]
[357294831,1743990632689,-500.0,0.00030451,7]
[357294832,1743990632699,-160.0,0.00030658,2]
[357294833,1743990632709,-790.94675424,0.00030969,9]
[357294834,1743990632719,-500.0,0.00031151,7]
[357294835,1743990632729,-790.94675424,0.00031693,10]
[357294836,1743990632738,-790.94675424,0.00032417,10]
[357294837,1743990632748,-2159.84394772,0.00032439,2]
[357294838,1743990632758,-1000.0,0.00032877,5]